bitfinex-derivatives/quotes_SOLF0:USTF0_20250509
["timestamp","ask_amount","ask_price","bid_price","bid_amount"]
[1746800428148,47.24,170.52,170.37,1.17391559]
[1746800428540,28.14072941,170.51,170.37,1.17391559]
[1746800428843,5.8665,170.47,170.37,1.17391559]
[1746800429041,47.24,170.52,170.37,1.17391559]
[1746800429442,28.14072941,170.5,170.37,1.17391559]
[1746800429846,357.0,170.51,170.37,29.314645]
[1746800430050,451.88,170.57,170.37,91.314645]
[1746800430349,451.88,170.57,170.41,28.14072941]
[1746800430542,94.88,170.57,170.42,513.5334]
[1746800430848,94.88,170.57,170.43,48.0]
[1746800431440,28.14072941,170.56,170.42,513.5334]
[1746800432538,5.866,170.49,170.42,519.4014]
[1746800432744,357.0,170.55,170.37,1.17391559]
[1746800433042,5.8681,170.43,170.37,96.01391559]
[1746800433238,94.78,170.5,170.37,96.01391559]
[1746800433445,94.82,170.53,170.37,186.154645]
[1746800433950,94.82,170.53,170.37,124.154645]
[1746800434552,357.0,170.52,170.37,48.13391559]
[1746800434947,28.14072941,170.5,170.37,48.13391559]
[1746800435144,357.0,170.52,170.41,5.8684]
[1746800435350,357.0,170.52,170.42,1.17357117]
[1746800436045,28.14072941,170.47,170.42,1.17357117]
[1746800436250,47.88,170.46,170.31,47.98099195]
[1746800436448,28.14072941,170.43,170.29,3.8338]
[1746800436847,28.14072941,170.39,170.26,46.96]
[1746800437042,122.94072941,170.39,170.24,49.7266]
[1746800437240,122.94072941,170.39,170.22,464.68]
[1746800437241,28.14072941,170.35,170.27,1.17460503]
[1746800437655,5.8731,170.28,170.27,1.17460503]
[1746800437955,95.16,170.32,170.2,1.9802]
[1746800438446,28.14072941,170.35,170.2,1.9802]
[1746800438748,357.0,170.36,170.21,1.17501909]
[1746800438940,357.0,170.36,170.22,48.2]
[1746800439144,5.8706,170.35,170.22,48.2]
[1746800439451,492.82072941,170.41,170.22,48.2]
[1746800439748,95.18,170.4,170.22,48.2]
[1746800440252,95.18,170.4,170.22,110.2]
[1746800440448,5.8695,170.38,170.22,110.2]
[1746800440644,78.49572096,170.42,170.22,110.2]
[1746800440850,78.49572096,170.42,170.29,28.14072941]
[1746800441153,78.49572096,170.42,170.3,102.5328]
[1746800441550,78.49572096,170.42,170.39,5.8691]
[1746800441954,78.49572096,170.42,170.3,102.5328]
[1746800442453,28.14072941,170.45,170.31,48.28]
[1746800443160,28.14072941,170.45,170.3,54.1328]
[1746800443454,0.7352,170.44,170.3,54.1328]
[1746800443652,5.8691,170.4,170.35,5.8705]
[1746800443955,0.7352,170.44,170.3,54.1328]
[1746800444154,48.2,170.43,170.3,56.0698]
[1746800444349,28.14072941,170.41,170.3,50.1976]
[1746800444549,48.2,170.43,170.3,50.1976]
[1746800444755,48.38,170.42,170.23,3.7179]
[1746800445046,28.14072941,170.4,170.23,52.1179]
[1746800445256,5.8711,170.34,170.29,5.8723]
[1746800445452,28.14072941,170.4,170.23,52.1179]
[1746800446356,28.14072941,170.4,170.23,80.25862941]
[1746800446954,48.38,170.42,170.23,80.25862941]
[1746800447352,28.14072941,170.4,170.23,3.7179]
[1746800447550,48.38,170.42,170.24,48.12]
[1746800448462,5.8716,170.32,170.27,5.8732]
[1746800448654,48.04,170.38,170.23,3.7179]
[1746800448954,48.04,170.38,170.27,5.873]
[1746800449159,48.04,170.38,170.23,51.7579]
[1746800449356,48.04,170.38,170.23,79.89862941]
[1746800449860,48.38,170.42,170.23,79.89862941]
[1746800450157,96.38,170.42,170.3,5.872]
[1746800450951,96.38,170.42,170.31,5.8718]
[1746800451255,0.7352,170.44,170.3,47.76]
[1746800451460,0.7352,170.44,170.33,5.8709]
[1746800451760,0.7352,170.44,170.31,96.12]
[1746800452058,0.7352,170.44,170.33,5.8711]
[1746800452257,0.7352,170.44,170.31,96.12]
[1746800452660,127.61212096,170.49,170.32,3.8033]
[1746800452854,127.61212096,170.49,170.33,1.8494]
[1746800453055,28.14072941,170.48,170.36,5.8701]
[1746800453256,5.8691,170.4,170.33,1.8494]
[1746800453456,28.14072941,170.44,170.33,1.8494]
[1746800454059,28.14072941,170.44,170.34,5.8708]
[1746800454367,28.14072941,170.44,170.3,47.6]
[1746800454564,28.14072941,170.44,170.35,5.8703]
[1746800454763,28.14072941,170.44,170.3,47.6]
[1746800455161,75.66072941,170.44,170.3,47.6]
[1746800455360,5.8687,170.41,170.3,47.6]
[1746800455563,47.52,170.44,170.3,47.6]
[1746800455763,5.868,170.43,170.3,47.6]
[1746800456059,28.14072941,170.48,170.3,47.6]
[1746800456564,49.1164,170.49,170.31,28.14072941]
[1746800456767,48.38,170.49,170.31,28.14072941]
[1746800456965,5.8661,170.48,170.31,28.14072941]
[1746800457166,48.38,170.49,170.35,28.14072941]
[1746800457464,0.7348,170.53,170.36,95.58]
[1746800457668,48.38,170.54,170.48,5.8658]
[1746800457967,48.38,170.54,170.43,48.38]
[1746800458167,5.8646,170.53,170.49,5.8655]
[1746800458361,5.8646,170.53,170.44,3.8087]
[1746800458565,48.38,170.54,170.44,3.8087]
[1746800458772,5.8644,170.53,170.48,5.8658]
[1746800459067,48.38,170.54,170.44,3.8087]
[1746800460366,48.38,170.54,170.38,511.62]
[1746800460566,48.38,170.54,170.39,3.7439]
[1746800460761,28.14072941,170.55,170.39,31.88462941]
[1746800460967,5.864,170.54,170.39,31.88462941]
[1746800461169,464.86,170.58,170.39,31.88462941]
[1746800461778,28.14072941,170.55,170.39,31.88462941]
[1746800462076,28.14072941,170.55,170.4,93.62]
[1746800462968,28.14072941,170.55,170.41,1.17364004]
[1746800463372,28.14072941,170.51,170.41,1.17364004]
[1746800463570,5.8679,170.43,170.41,1.17364004]
[1746800463874,121.56072941,170.51,170.41,1.17364004]
[1746800464071,93.42,170.51,170.41,1.17364004]
[1746800464470,121.56072941,170.51,170.41,1.17364004]
[1746800464774,93.42,170.51,170.41,1.17364004]
[1746800465275,47.0,170.51,170.41,1.17364004]
[1746800465468,47.0,170.51,170.42,1.8945]
[1746800465674,5.8681,170.42,170.41,1.17364004]
[1746800465968,5.8681,170.42,170.41,0.36024004]
[1746800466175,28.14072941,170.47,170.35,5.8702]
[1746800466375,28.14072941,170.47,170.32,93.48]
[1746800466671,5.8693,170.39,170.35,5.8702]
[1746800466871,47.0,170.45,170.32,47.0]
[1746800467068,28.14072941,170.43,170.33,1.17419127]
[1746800467273,5.8709,170.34,170.33,1.17419127]
[1746800468276,5.8716,170.32,170.25,1.8224]
[1746800468476,46.24,170.38,170.25,1.8224]
[1746800468677,357.0,170.42,170.25,1.8224]
[1746800468877,357.0,170.42,170.28,28.14072941]
[1746800469078,47.0,170.45,170.32,28.14072941]
[1746800469276,52.8673,170.45,170.33,5.713]
[1746800469575,464.72,170.48,170.33,5.713]
[1746800470175,28.14072941,170.47,170.33,5.713]
[1746800470374,28.14072941,170.47,170.36,5.8701]
[1746800470573,28.14072941,170.47,170.33,5.713]
[1746800470773,5.8679,170.43,170.33,5.713]
[1746800470981,28.14072941,170.47,170.33,5.713]
[1746800471172,464.72,170.48,170.33,5.713]
[1746800472273,5.8699,170.37,170.32,5.8715]
[1746800472581,28.14072941,170.43,170.29,46.2]
[1746800472582,47.0,170.42,170.29,46.2]
[1746800472881,5.8719,170.31,170.27,5.8732]
[1746800473077,47.0,170.36,170.24,47.0]
[1746800473272,28.14072941,170.35,170.23,1.8176]
[1746800473481,28.14072941,170.35,170.23,7.692]
[1746800473677,28.14072941,170.35,170.23,1.8176]
[1746800473880,5.8729,170.29,170.24,5.8741]
[1746800474078,28.14072941,170.35,170.23,1.8176]
[1746800474381,5.8706,170.35,170.3,5.8719]
[1746800474683,510.98,170.38,170.25,47.0]
[1746800475084,357.0,170.43,170.27,28.14072941]
[1746800475381,357.0,170.43,170.28,2.0036]
[1746800475683,464.94,170.46,170.28,2.0036]
[1746800475886,5.8678,170.43,170.31,28.14072941]
[1746800476182,464.94,170.46,170.32,95.1154]
[1746800476380,28.14072941,170.45,170.32,1.8354]
[1746800476881,28.14072941,170.45,170.32,7.7069]
[1746800477081,28.14072941,170.45,170.32,1.8354]
[1746800477881,464.94,170.46,170.32,1.8354]
[1746800478281,28.14072941,170.45,170.32,1.8354]
[1746800478582,28.14072941,170.45,170.3,47.02]
[1746800478975,464.94,170.46,170.3,47.02]
[1746800479677,93.18,170.47,170.39,5.869]
[1746800479874,464.94,170.54,170.36,47.02]
[1746800479875,93.18,170.52,170.36,47.02]
[1746800480077,93.18,170.52,170.37,48.9394]
[1746800480078,47.02,170.52,170.37,48.9394]
[1746800480278,47.02,170.52,170.38,3.8744]
[1746800481285,5.8667,170.47,170.42,5.868]
[1746800481488,47.02,170.52,170.38,3.8744]
[1746800481794,28.14072941,170.5,170.38,3.8744]
[1746800482088,28.14072941,170.53,170.38,3.8744]
[1746800482279,93.22,170.52,170.35,464.9]
[1746800482478,28.14072941,170.49,170.35,464.9]
[1746800482684,28.14072941,170.49,170.35,5.8704]
[1746800482873,28.14072941,170.49,170.33,3.7198]
[1746800483484,93.2,170.48,170.33,3.7198]
[1746800483681,357.0,170.51,170.34,29.31485175]
[1746800483980,465.6748,170.54,170.38,28.14072941]
[1746800484184,47.02,170.55,170.38,28.14072941]
[1746800484185,47.02,170.55,170.42,28.14072941]
[1746800484383,47.02,170.55,170.43,65.8693]
[1746800484782,47.02,170.55,170.43,3.8693]
[1746800485386,5.8664,170.48,170.43,9.737]
[1746800485685,0.7328,170.54,170.39,560.0193]
[1746800485888,0.7328,170.54,170.41,5.8682]
[1746800486086,0.7328,170.54,170.39,560.0193]
[1746800486390,5.8672,170.45,170.39,560.0193]
[1746800486590,45.98,170.52,170.39,560.0193]
[1746800486787,45.98,170.52,170.39,466.8793]
[1746800486982,5.8687,170.41,170.36,52.8901]
[1746800487185,357.0,170.51,170.36,47.02]
[1746800487382,5.8692,170.39,170.36,52.8899]
[1746800487587,45.9,170.46,170.36,47.02]
[1746800487793,45.84,170.46,170.36,47.02]
[1746800488492,45.84,170.46,170.34,1.17412234]
[1746800488694,28.87702941,170.45,170.34,1.17412234]
[1746800488889,0.7363,170.45,170.34,1.17412234]
[1746800489192,92.06,170.47,170.34,1.17412234]
[1746800489388,92.06,170.47,170.34,46.91412234]
[1746800489790,0.7363,170.49,170.34,46.91412234]
[1746800489995,92.6963,170.49,170.34,93.13412234]
[1746800490195,28.14072941,170.48,170.34,93.13412234]
[1746800490789,92.6963,170.49,170.34,93.13412234]
[1746800491791,45.74,170.49,170.34,569.69572234]
[1746800491989,510.94,170.53,170.37,28.14072941]
[1746800492191,510.94,170.53,170.38,1.9126]
[1746800492390,464.8,170.53,170.38,1.9126]
[1746800492592,464.8,170.53,170.39,3.777]
[1746800492792,5.8647,170.52,170.4,91.72]
[1746800493195,464.8,170.53,170.4,91.72]
[1746800493993,91.74,170.54,170.4,91.72]
[1746800494295,449.3563,170.57,170.4,119.86072941]
[1746800494697,5.8646,170.53,170.48,5.866]
[1746800494900,448.62,170.57,170.41,90.14072941]
[1746800495099,91.62,170.57,170.41,90.14072941]
[1746800495301,91.62,170.57,170.41,62.0]
[1746800495502,91.62,170.57,170.4,91.72]
[1746800496299,119.76072941,170.57,170.39,3.777]
[1746800496497,119.76072941,170.57,170.46,5.8665]
[1746800496699,119.76072941,170.57,170.41,91.28]
[1746800497003,5.8648,170.52,170.48,5.866]
[1746800497204,119.76072941,170.57,170.41,91.28]
[1746800498104,45.74,170.57,170.41,91.28]
[1746800498604,357.0,170.6,170.41,91.28]
[1746800498605,357.0,170.6,170.44,28.14072941]
[1746800498802,46.4544,170.63,170.44,492.80072941]
[1746800499003,46.4544,170.63,170.48,28.14072941]
[1746800499199,46.4544,170.63,170.49,96.7954]
[1746800499810,5.8614,170.62,170.56,5.8632]
[1746800500107,5.8614,170.62,170.49,96.7954]
[1746800500301,45.72,170.63,170.49,96.7954]
[1746800500496,5.862,170.6,170.55,5.8636]
[1746800500703,45.72,170.63,170.49,96.7954]
[1746800501805,45.2,170.67,170.57,5.8629]
[1746800501999,45.2,170.67,170.49,158.7954]
[1746800502603,5.8611,170.63,170.49,158.7954]
[1746800502797,46.4521,170.68,170.52,28.14072941]
[1746800503509,28.14072941,170.67,170.49,96.7954]
[1746800503709,28.14072941,170.67,170.55,5.8635]
[1746800504009,28.14072941,170.67,170.49,96.7954]
[1746800504309,28.14072941,170.63,170.45,45.7]
[1746800504508,90.32,170.62,170.46,5.8217]
[1746800504808,28.14072941,170.63,170.47,28.14072941]
[1746800504809,44.58,170.61,170.47,28.14072941]
[1746800505206,5.8625,170.59,170.47,28.14072941]
[1746800505402,44.54,170.64,170.47,28.14072941]
[1746800505710,5.8625,170.59,170.47,28.14072941]
[1746800505907,44.54,170.64,170.48,62.0]
[1746800506108,44.54,170.64,170.49,44.44]
[1746800506306,0.7321,170.68,170.49,508.9]
[1746800506508,90.08,170.67,170.51,28.14072941]
[1746800506705,5.8618,170.61,170.52,44.34]
[1746800506909,0.7321,170.68,170.52,44.34]
[1746800507304,5.8609,170.63,170.52,44.34]
[1746800507504,0.7321,170.68,170.52,44.34]
[1746800508312,5.8603,170.65,170.59,5.8622]
[1746800508516,0.7321,170.68,170.52,44.34]
[1746800508911,5.8626,170.59,170.53,5.8642]
[1746800509109,88.52,170.63,170.52,44.34]
[1746800509310,28.14072941,170.65,170.52,44.34]
[1746800509311,5.8613,170.62,170.52,44.34]
[1746800509516,116.68072941,170.65,170.52,44.34]
[1746800510219,72.26072941,170.65,170.52,44.34]
[1746800510723,89.2321,170.68,170.52,44.34]
[1746800510919,44.16,170.68,170.52,44.34]
[1746800511215,5.8601,170.66,170.52,44.34]
[1746800511612,5.8601,170.66,170.61,5.8612]
[1746800511809,5.8601,170.66,170.52,44.34]
[1746800512014,5.8602,170.65,170.52,44.34]
[1746800512625,5.8602,170.65,170.6,5.8618]
[1746800512916,43.96,170.68,170.52,44.34]
[1746800513418,43.96,170.68,170.55,28.14072941]
[1746800513618,43.96,170.68,170.56,49.5122]
[1746800513814,43.96,170.68,170.62,5.8611]
[1746800514009,43.96,170.68,170.56,49.5122]
[1746800514414,5.8608,170.64,170.6,5.8618]
[1746800514823,43.96,170.68,170.56,49.5122]
[1746800515322,464.66,170.69,170.56,49.5122]
[1746800515627,5.8611,170.63,170.59,5.8621]
[1746800515920,464.66,170.69,170.56,49.5122]
[1746800516122,88.06,170.7,170.57,44.32]
[1746800516522,88.06,170.7,170.58,5.8625]
[1746800516717,88.06,170.7,170.57,44.32]
[1746800517525,88.06,170.7,170.63,5.8608]
[1746800517920,88.06,170.7,170.57,44.32]
[1746800518323,88.06,170.7,170.6,5.8619]
[1746800518519,88.06,170.7,170.57,44.32]
[1746800518720,5.8609,170.63,170.59,5.8621]
[1746800518923,88.06,170.7,170.57,44.32]
[1746800520325,5.861,170.63,170.6,5.8619]
[1746800520524,88.06,170.7,170.57,44.32]
[1746800521023,5.8611,170.63,170.57,44.32]
[1746800521723,88.06,170.7,170.57,44.32]
[1746800522121,357.0,170.72,170.57,44.32]
[1746800522327,43.85,170.73,170.59,28.14072941]
[1746800523020,5.8589,170.69,170.63,5.8609]
[1746800523225,43.85,170.73,170.59,28.14072941]
[1746800523426,0.73,170.73,170.59,28.14072941]
[1746800523616,5.8583,170.71,170.59,28.14072941]
[1746800523816,44.32,170.74,170.6,62.0]
[1746800524824,44.32,170.74,170.59,464.22]
[1746800525228,44.32,170.74,170.6,5.8617]
[1746800525426,11.7149,170.73,170.59,464.22]
[1746800525630,28.14072941,170.73,170.59,464.22]
[1746800525929,357.0,170.72,170.58,42.98]
[1746800526129,28.14072941,170.69,170.56,3.6655]
[1746800526332,443.5326,170.68,170.52,1.9227]
[1746800526525,11.7198,170.66,170.51,42.98]
[1746800526926,11.7198,170.66,170.52,5.8644]
[1746800527130,11.7198,170.66,170.51,42.98]
[1746800527327,11.7198,170.66,170.54,5.8638]
[1746800527529,357.0,170.67,170.51,42.98]
[1746800527829,5.8625,170.59,170.55,5.8634]
[1746800528020,357.0,170.67,170.51,44.15295173]
[1746800528528,442.68,170.67,170.51,44.15295173]
[1746800528927,442.68,170.67,170.57,5.8627]
[1746800529127,442.68,170.67,170.54,42.62]
[1746800529328,85.68,170.67,170.55,1.986]
[1746800529525,85.68,170.67,170.55,30.12672941]
[1746800529722,85.68,170.67,170.56,3.6578]
[1746800529926,5.8609,170.63,170.6,5.8618]
[1746800530125,85.68,170.67,170.57,42.98]
[1746800530540,5.8596,170.67,170.63,5.8608]
[1746800530828,42.98,170.72,170.59,28.14072941]
[1746800531032,5.8588,170.7,170.65,5.86]
[1746800531228,42.98,170.74,170.6,42.5]
[1746800531532,5.8591,170.69,170.64,5.8602]
[1746800531721,42.98,170.74,170.6,42.5]
[1746800532333,42.98,170.74,170.57,42.98]
[1746800532525,42.98,170.74,170.57,85.4]
[1746800532526,385.14072941,170.73,170.57,85.4]
[1746800532731,385.14072941,170.73,170.57,42.42]
[1746800532732,28.14072941,170.69,170.57,42.42]
[1746800532932,85.4,170.68,170.57,42.42]
[1746800533123,85.4,170.68,170.56,1.8403]
[1746800533327,28.14072941,170.65,170.52,44.8011]
[1746800534133,5.8637,170.55,170.52,44.8011]
[1746800534432,85.26,170.62,170.52,44.8011]
[1746800534630,85.26,170.62,170.52,50.6655]
[1746800534833,85.26,170.62,170.52,44.8011]
[1746800535235,5.863,170.57,170.53,5.8643]
[1746800535530,85.26,170.62,170.52,44.8011]
[1746800535734,5.8637,170.55,170.52,1.8211]
[1746800535935,85.26,170.62,170.52,1.8211]
[1746800536135,85.26,170.62,170.52,2.8211]
[1746800536336,5.8642,170.54,170.52,2.8211]
[1746800536635,85.26,170.62,170.52,2.8211]
[1746800537434,85.26,170.62,170.52,1.0]
[1746800537732,5.8643,170.53,170.52,1.0]
[1746800538137,84.94,170.56,170.43,1.9589]
[1746800538326,5.865,170.52,170.47,5.8663]
[1746800538531,385.14072941,170.61,170.43,1.9589]
[1746800538729,42.98,170.63,170.46,28.14072941]
[1746800538934,5.8629,170.58,170.53,5.864]
[1746800539136,5.8629,170.58,170.47,85.6]
[1746800539337,42.98,170.63,170.47,85.6]
[1746800539737,42.98,170.63,170.48,29.31388755]
[1746800540038,5.862,170.6,170.55,5.8633]
[1746800540234,42.98,170.63,170.49,1.9017]
[1746800540941,42.98,170.63,170.5,1.8597]
[1746800541137,48.841,170.63,170.59,5.8621]
[1746800541338,48.841,170.63,170.5,1.8597]
[1746800541339,42.98,170.63,170.53,85.34]
[1746800541541,42.98,170.63,170.54,2.0144]
[1746800542135,42.98,170.63,170.55,5.8636]
[1746800542434,42.98,170.63,170.53,42.98]
[1746800542634,71.12072941,170.63,170.5,1.8597]
[1746800542929,428.12072941,170.63,170.5,1.8597]
[1746800543130,399.98,170.63,170.5,1.8597]
[1746800543838,5.8627,170.58,170.54,5.8637]
[1746800544040,399.98,170.63,170.5,1.8597]
[1746800544341,5.8626,170.59,170.54,5.8637]
[1746800544541,5.8626,170.59,170.5,1.8597]
[1746800544740,399.98,170.63,170.5,1.8597]
[1746800545142,399.98,170.63,170.51,1.17295173]
[1746800545531,42.98,170.63,170.51,1.17295173]
[1746800545840,464.9108,170.67,170.51,1.17295173]
[1746800546041,5.8614,170.62,170.51,1.17295173]
[1746800546240,357.0,170.71,170.51,1.17295173]
[1746800546241,357.0,170.71,170.54,28.14072941]
[1746800546443,357.0,170.71,170.55,86.64]
[1746800546636,5.8589,170.69,170.64,5.8605]
[1746800546839,86.62,170.74,170.64,5.8605]
[1746800547346,86.62,170.74,170.63,5.8608]
[1746800547843,86.62,170.74,170.59,5.821]
[1746800548235,5.8605,170.65,170.59,5.821]
[1746800548444,86.62,170.74,170.6,5.8617]
[1746800548833,28.14072941,170.72,170.59,3.9204]
[1746800549033,357.0,170.71,170.55,88.2643]
[1746800549237,357.0,170.7,170.55,88.2643]
[1746800549439,5.8621,170.6,170.56,5.863]
[1746800549641,42.98,170.67,170.55,88.2643]
[1746800550039,42.98,170.67,170.53,5.8641]
[1746800550243,28.14072941,170.64,170.52,3.9157]
[1746800550545,357.0,170.63,170.51,7.03765173]
[1746800550841,43.24,170.62,170.51,1.17295173]
[1746800551233,42.98,170.61,170.51,1.17295173]
[1746800551437,28.14072941,170.6,170.51,1.17295173]
[1746800551744,28.87212941,170.6,170.51,1.17295173]
[1746800552145,0.7314,170.6,170.51,1.17295173]
[1746800552347,42.98,170.61,170.51,1.17295173]
[1746800552742,5.8635,170.56,170.51,1.17295173]
[1746800552946,5.8635,170.56,170.52,5.8646]
[1746800553346,5.8635,170.56,170.51,1.17295173]
[1746800553648,42.98,170.61,170.51,1.17295173]
[1746800554141,5.8645,170.53,170.51,1.17295173]
[1746800554348,28.14072941,170.6,170.51,1.17295173]
[1746800554647,5.8647,170.52,170.51,1.17295173]
[1746800555242,5.8641,170.54,170.51,1.17295173]
[1746800555451,42.98,170.61,170.51,1.17295173]
[1746800555844,5.8647,170.52,170.51,1.17295173]
[1746800556847,5.8643,170.54,170.51,1.17295173]
[1746800557049,42.88,170.6,170.51,1.17295173]
[1746800557343,5.8632,170.57,170.51,1.17295173]
[1746800557547,42.88,170.64,170.51,1.17295173]
[1746800558447,42.88,170.64,170.56,5.863]
[1746800558648,42.88,170.64,170.51,44.05295173]
[1746800558949,42.88,170.64,170.52,5.8646]
[1746800559151,5.8635,170.56,170.52,5.8646]
[1746800559349,5.8635,170.56,170.51,44.05295173]
[1746800559546,5.8644,170.53,170.51,44.05295173]
[1746800559751,42.88,170.58,170.51,1.17295173]
[1746800561046,385.87292941,170.57,170.43,5.8675]
[1746800561251,28.14072941,170.53,170.42,1.898]
[1746800561458,28.14072941,170.53,170.38,4.71905236]
[1746800561459,86.7,170.52,170.38,3.6983]
[1746800561749,5.8683,170.42,170.38,1.8433]
[1746800561945,28.14072941,170.49,170.38,1.8433]
[1746800562152,43.6122,170.48,170.36,5.8701]
[1746800562350,43.6122,170.48,170.35,1.898]
[1746800562351,400.6122,170.48,170.35,1.898]
[1746800562552,444.4122,170.48,170.4,5.8685]
[1746800563048,443.68,170.48,170.35,1.898]
[1746800563348,5.867,170.46,170.35,1.898]
[1746800563546,5.867,170.46,170.35,30.03872941]
[1746800563747,357.0,170.48,170.39,28.14072941]
[1746800563950,357.0,170.48,170.4,86.54]
[1746800564151,357.0,170.48,170.41,3.8105]
[1746800564452,5.8651,170.51,170.46,5.8667]
[1746800564653,86.54,170.55,170.41,3.8105]
[1746800564854,464.38,170.57,170.41,3.8105]
[1746800565057,464.38,170.57,170.41,4.98414004]
[1746800565455,5.8645,170.53,170.48,5.8658]
[1746800565648,464.38,170.57,170.41,4.98414004]
[1746800566348,5.8648,170.52,170.47,5.8663]
[1746800566549,464.38,170.57,170.47,5.8663]
[1746800566753,464.38,170.57,170.41,4.98414004]
[1746800566954,492.52072941,170.57,170.41,4.98414004]
[1746800567156,492.52072941,170.57,170.41,48.22414004]
[1746800567749,492.52072941,170.57,170.41,4.98414004]
[1746800567948,492.52072941,170.57,170.45,5.8671]
[1746800568148,492.52072941,170.57,170.41,4.98414004]
[1746800568454,492.52072941,170.57,170.46,5.8666]
[1746800568755,492.52072941,170.57,170.41,4.98414004]
[1746800568949,11.7272,170.56,170.41,4.98414004]
[1746800569253,11.7272,170.56,170.41,1.17364004]
[1746800569254,28.14072941,170.53,170.41,1.17364004]
[1746800569454,443.5936,170.52,170.41,7.04204004]
[1746800569645,443.5936,170.52,170.41,1.17364004]
[1746800570453,28.14072941,170.49,170.41,1.17364004]
[1746800570755,28.14072941,170.49,170.36,1.8609]
[1746800571154,5.8663,170.48,170.4,5.8686]
[1746800571457,28.14072941,170.55,170.4,42.74]
[1746800571754,85.64,170.54,170.43,5.8676]
[1746800571954,85.64,170.54,170.41,42.9]
[1746800572154,5.8671,170.45,170.41,42.9]
[1746800572346,85.64,170.54,170.41,42.9]
[1746800573253,5.8672,170.45,170.41,42.9]
[1746800573659,85.64,170.54,170.41,42.9]
[1746800574351,5.8673,170.45,170.41,42.9]
[1746800575051,5.8675,170.44,170.41,42.9]
[1746800575451,85.64,170.54,170.41,42.9]
[1746800575652,5.8681,170.42,170.38,42.36]
[1746800576156,442.64,170.54,170.38,42.36]
[1746800576557,5.868,170.43,170.39,5.8691]
[1746800576755,442.64,170.54,170.38,42.36]
[1746800576957,28.14072941,170.49,170.36,1.8609]
[1746800577152,86.0547,170.48,170.35,3.8996]
[1746800577352,86.0547,170.48,170.35,1.898]
[1746800577659,86.0547,170.48,170.32,44.3854]
[1746800577660,5.8702,170.36,170.32,7.8367]
[1746800577858,28.14072941,170.45,170.32,7.8367]
[1746800578157,5.8704,170.36,170.32,7.8367]
[1746800578559,5.8704,170.36,170.32,5.8713]
[1746800578759,5.8704,170.36,170.33,5.8711]
[1746800578954,5.8699,170.37,170.31,42.9]
[1746800579260,70.28072941,170.41,170.31,42.9]
[1746800579648,5.87,170.37,170.31,42.9]
[1746800579853,70.28072941,170.41,170.31,42.9]
[1746800580057,42.14,170.41,170.31,42.9]
[1746800580454,42.14,170.41,170.31,84.9]
[1746800580659,5.8704,170.36,170.31,84.9]
[1746800580863,5.8704,170.36,170.31,90.7718]
[1746800581059,5.8704,170.36,170.31,84.9]
[1746800581257,5.8704,170.36,170.32,5.8715]
[1746800581559,42.14,170.41,170.31,84.9]
[1746800581861,5.869,170.4,170.31,84.9]
[1746800582259,535.66072941,170.45,170.37,5.8695]
[1746800582452,535.66072941,170.45,170.31,84.9]
[1746800582763,535.66072941,170.45,170.35,5.8704]
[1746800582964,535.66072941,170.45,170.31,84.9]
[1746800583360,535.66072941,170.45,170.31,90.7716]